fUSD/lending_fUSD_20240428
["ID","MTS","AMOUNT","RATE_DAILY","PERIOD"]
[324811300,1714339950787,-1272.73799537,0.0001726,2]
[324811301,1714339950799,-1044.54,0.0001726,2]
[324811302,1714339950808,-854.50653724,0.0001726,2]
[324811303,1714339950818,-880.53,0.0001726,2]
[324811304,1714339950827,-1228.36,0.0001726,2]
[324811305,1714339950837,-729.17,0.0001726,2]
[324811306,1714339950847,-530.24,0.0001726,2]
[324811307,1714339950857,-3505.48789351,0.0001726,2]
[324811308,1714339950868,-797.93285571,0.0001726,2]
[324811309,1714339950878,-529.59,0.0001726,2]
[324811310,1714339950888,-629.72,0.0001726,2]
[324811311,1714339950898,-1082.49,0.0001726,2]
[324811312,1714339950908,-3192.39373683,0.0001726,2]
[324811313,1714339950918,-4836.85,0.0001726,2]
[324811314,1714339950929,-1419.26,0.0001726,2]
[324811315,1714339950938,-3170.59,0.0001726,2]
[324811316,1714339950947,-554.26,0.0001726,2]
[324811317,1714339950957,-1075.95,0.0001726,2]
[324811318,1714339950967,-3460.26,0.0001726,2]
[324811319,1714339950977,-812.38,0.0001726,2]
[324811320,1714339950986,-1170.16,0.0001726,2]
[324811321,1714339950996,-9425.62835776,0.0001726,2]
[324811322,1714339951005,-1842.31402883,0.0001726,2]
[324811323,1714339951015,-1069.57,0.0001726,2]
[324811324,1714339951024,-451.91,0.0001726,2]
[324811325,1714339951033,-14273.1716,0.0001726,2]
[324811326,1714339951043,-544.21,0.0001726,2]
[324811327,1714339951053,-7051.42605916,0.0001726,2]
[324811328,1714339951062,-2707.83,0.0001726,2]
[324811329,1714339951071,-1038.28,0.0001726,2]
[324811330,1714339951081,-789.39,0.0001726,2]
[324811331,1714339951090,-2766.7030943,0.0001726,2]
[324811332,1714339951100,-987.13,0.0001726,2]
[324811333,1714339951113,-1211.73,0.0001726,2]
[324811334,1714339951123,-675.39,0.0001726,2]
[324811335,1714339951135,-1666.13021246,0.0001726,2]
[324811336,1714339951145,-1516.25,0.0001726,2]
[324811337,1714339951154,-1349.44,0.0001726,2]
[324811338,1714339951167,-1899.46,0.0001726,2]
[324811339,1714339951175,-1988.98,0.0001726,2]
[324811340,1714339951186,-783.48,0.0001726,2]
[324811341,1714339951197,-6591.76,0.0001726,2]
[324811342,1714339951208,-1261.75,0.0001726,2]
[324811343,1714339951219,-2135.27,0.0001726,2]
[324811344,1714339951230,-178.3,0.0001726,2]
[324811345,1714339951239,-562.73,0.0001726,2]
[324811346,1714339951250,-6232.49,0.0001726,2]
[324811347,1714339951260,-1410.05,0.0001726,2]
[324811348,1714339951271,-659.27,0.0001726,2]
[324811349,1714339951281,-1673.03,0.0001726,2]
[324811350,1714339951291,-1799.23,0.0001726,2]
[324811351,1714339951300,-895.34,0.0001726,2]
[324811352,1714339951310,-1513.47,0.0001726,2]
[324811353,1714339951319,-6800.89295413,0.0001726,2]
[324811354,1714339951329,-753.37,0.0001726,2]
[324811355,1714339951340,-782.2,0.0001726,2]
[324811356,1714339951351,-305.26,0.0001726,2]
[324811357,1714339951360,-1653.05064059,0.0001726,2]
[324811358,1714339951370,-1733.53,0.0001726,2]
[324811359,1714339951380,-1590.78,0.0001726,2]
[324811360,1714339951390,-12133.58441096,0.0001726,2]
[324811361,1714339951399,-2025.76,0.0001726,2]
[324811362,1714339951410,-1135.93,0.0001726,2]
[324811363,1714339951419,-1421.97,0.0001726,2]
[324811364,1714339951429,-4575.84272388,0.0001726,2]
[324811365,1714339951439,-6107.19,0.0001726,2]
[324811366,1714339951449,-1396.53,0.0001726,2]
[324811367,1714339951458,-998.59,0.0001726,2]
[324811368,1714339951467,-2527.92,0.0001726,2]
[324811369,1714339951477,-2789.22735714,0.0001726,2]
[324811370,1714339951486,-1762.07688203,0.0001726,2]
[324811371,1714339951495,-1062.92,0.0001726,2]
[324811372,1714339951504,-1977.90123226,0.0001726,2]
[324811373,1714339951514,-2491.6,0.0001726,2]
[324811374,1714339951523,-3361.86,0.0001726,2]
[324811375,1714339951532,-1098.37917959,0.0001726,2]
[324811376,1714339951541,-1081.59,0.0001726,2]
[324811377,1714339951550,-2735.16,0.0001726,2]
[324811378,1714339951560,-1862.63,0.0001726,2]
[324811379,1714339951569,-4338.56,0.0001726,2]
[324811380,1714339951579,-1752.54,0.0001726,2]
[324811381,1714339951588,-844.84180072,0.0001726,2]
[324811382,1714339951598,-2116.52793459,0.0001726,2]
[324811383,1714339951607,-1415.72,0.0001726,2]
[324811384,1714339951616,-1696.91,0.0001726,2]
[324811385,1714339951625,-552.53,0.0001726,2]
[324811386,1714339951635,-7394.17,0.0001726,2]
[324811387,1714339951644,-453.4,0.0001726,2]
[324811388,1714339951653,-2704.60665091,0.0001726,2]
[324811389,1714339951662,-547.6666176,0.0001726,2]
[324811390,1714339951672,-869.11,0.0001726,2]
[324811391,1714339951681,-3366.85146636,0.0001726,2]
[324811392,1714339951693,-709.74,0.0001726,2]
[324811393,1714339951712,-849.08,0.0001726,2]
[324811394,1714339951729,-4609.45477314,0.0001726,2]
[324811395,1714339951748,-1257.4165771,0.0001726,2]
[324811396,1714339951768,-972.44,0.0001726,2]
[324811397,1714339951786,-1051.83,0.0001726,2]
[324811398,1714339951808,-1129.53,0.0001726,2]
[324811399,1714339951822,-1026.07,0.0001726,2]
[324811400,1714339951836,-1721.46176847,0.0001726,2]
[324811401,1714339951855,-505.68,0.0001726,2]
[324811402,1714339951878,-784.16,0.0001726,2]
[324811403,1714339951892,-3106.84348125,0.0001726,2]
[324811404,1714339951908,-1332.46624554,0.0001726,2]
[324811405,1714339951924,-1771.04991994,0.0001726,2]
[324811406,1714339951940,-3285.78,0.0001726,2]
[324811407,1714339951955,-1973.14754766,0.0001726,2]
[324811408,1714339951971,-581.5,0.0001726,2]
[324811409,1714339951987,-5056.78557722,0.0001726,2]
[324811410,1714339952002,-528.97,0.0001726,2]
[324811411,1714339952018,-1960.281005,0.0001726,2]
[324811412,1714339952031,-854.46,0.0001726,2]
[324811413,1714339952049,-505.45,0.0001726,2]
[324811414,1714339952064,-1460.36614982,0.0001726,2]
[324811415,1714339952078,-4144.3299223,0.0001726,2]
[324811416,1714339952093,-2731.05,0.0001726,2]
[324811417,1714339952108,-1318.97336071,0.0001726,2]
[324811418,1714339952123,-2003.02,0.0001726,2]
[324811419,1714339952137,-1001.06,0.0001726,2]
[324811420,1714339952153,-9332.12339668,0.0001726,2]
[324811421,1714339952168,-4277.49367375,0.0001726,2]
[324811423,1714339952183,-5193.57341618,0.0001726,2]
[324811424,1714339952198,-775.93939896,0.0001726,2]
[324811425,1714339952212,-743.47,0.0001726,2]
[324811426,1714339952229,-1500.0,0.00017277,2]
[324811427,1714339952244,-150.0,0.00017315,2]
[324811428,1714339952259,-251.042906,0.00017348,2]
[324811429,1714339952273,-251.042906,0.00017348,4]
[324811430,1714339952287,-155.33423124,0.00017358,2]
[324811431,1714339952302,-150.0,0.00017401,2]
[324811432,1714339952317,-150.0,0.00017405,2]
[324811433,1714339952332,-251.042906,0.00017448,4]
[324811434,1714339952346,-251.042906,0.00017448,2]
[324811435,1714339952360,-165.97850791,0.00017474,2]
[324811436,1714339952375,-156.96982212,0.00017538,2]
[324811437,1714339952389,-251.042906,0.00017548,2]
[324811438,1714339952404,-251.042906,0.00017548,4]
[324811439,1714339952418,-154.13959312,0.00017548,2]
[324811440,1714339952433,-155.33423124,0.00017551,2]
[324811441,1714339952447,-150.0,0.00017576,2]
[324811442,1714339952462,-153.71017335,0.00017579,2]
[324811443,1714339952477,-166.66666667,0.00017585,2]
[324811444,1714339952491,-150.0,0.00017636,2]
[324811445,1714339952505,-251.042906,0.00017648,4]
[324811446,1714339952520,-251.042906,0.00017648,2]
[324811447,1714339952534,-254.35491349,0.0001766,2]
[324811448,1714339952549,-150.0,0.00017735,2]
[324811449,1714339952563,-251.042906,0.00017748,2]
[324811450,1714339952578,-251.042906,0.00017748,4]
[324811451,1714339952592,-445.5041104,0.00017798,2]
[324811452,1714339952608,-150.0,0.00017798,2]
[324811453,1714339952624,-738.26709412,0.0001781,2]
[324811454,1714339952639,-738.26709412,0.0001781,2]
[324811455,1714339952654,-738.26709412,0.0001781,2]
[324811456,1714339952669,-738.26709412,0.0001781,2]
[324811457,1714339952686,-738.26709412,0.0001781,2]
[324811458,1714339952701,-738.26709412,0.0001781,2]
[324811459,1714339952716,-738.26709412,0.0001781,2]
[324811460,1714339952730,-738.26709412,0.0001781,2]
[324811461,1714339952746,-738.26709412,0.0001781,2]
[324811462,1714339952761,-738.26709412,0.0001781,2]
[324811463,1714339952777,-738.26709412,0.0001781,2]
[324811464,1714339952794,-738.26709412,0.0001781,2]
[324811465,1714339952809,-738.26709412,0.0001781,2]
[324811466,1714339952826,-738.26709412,0.0001781,2]
[324811467,1714339952842,-738.26709412,0.0001781,2]
[324811468,1714339952856,-738.26709412,0.0001781,2]
[324811469,1714339952871,-738.26709412,0.0001781,2]
[324811470,1714339952885,-738.26709412,0.0001781,2]
[324811471,1714339952900,-738.26709412,0.0001781,2]
[324811472,1714339952914,-738.76,0.0001781,2]
[324811473,1714339952929,-174.09100923,0.0001781,2]
[324811474,1714339952944,-174.09100923,0.0001781,2]
[324811475,1714339952958,-174.09100923,0.0001781,2]
[324811476,1714339952972,-174.09100923,0.0001781,2]
[324811477,1714339952986,-174.09100923,0.0001781,2]
[324811478,1714339953000,-174.09100923,0.0001781,2]
[324811479,1714339953015,-174.09100923,0.0001781,2]
[324811480,1714339953029,-174.09100923,0.0001781,2]
[324811481,1714339953043,-174.09100923,0.0001781,2]
[324811482,1714339953057,-174.09100923,0.0001781,2]
[324811483,1714339953071,-174.09100923,0.0001781,2]
[324811484,1714339953085,-174.09100923,0.0001781,2]
[324811485,1714339953099,-174.09100923,0.0001781,2]
[324811486,1714339953113,-174.09100923,0.0001781,2]
[324811487,1714339953127,-174.09100923,0.0001781,2]
[324811488,1714339953141,-174.09100923,0.0001781,2]
[324811489,1714339953155,-174.09100923,0.0001781,2]
[324811490,1714339953169,-174.09100923,0.0001781,2]
[324811491,1714339953183,-174.09100923,0.0001781,2]
[324811492,1714339953198,-174.59,0.0001781,2]
[324811493,1714339953212,-1600.82729298,0.0001781,2]
[324811494,1714339953226,-1600.82729298,0.0001781,2]
[324811495,1714339953244,-1600.82729298,0.0001781,2]
[324811496,1714339953258,-1600.82729298,0.0001781,2]
[324811497,1714339953272,-1600.82729298,0.0001781,2]
[324811498,1714339953287,-1600.82729298,0.0001781,2]
[324811499,1714339953301,-1600.82729298,0.0001781,2]
[324811500,1714339953520,-1600.82729298,0.0001781,2]
[324811501,1714339953535,-1600.82729298,0.0001781,2]
[324811502,1714339953545,-1600.82729298,0.0001781,2]
[324811503,1714339953556,-1600.82729298,0.0001781,2]
[324811504,1714339953565,-1600.82729298,0.0001781,2]
[324811505,1714339953575,-1600.82729298,0.0001781,2]
[324811506,1714339953584,-1600.82729298,0.0001781,2]
[324811507,1714339953593,-1600.82729298,0.0001781,2]
[324811508,1714339953603,-1600.82729298,0.0001781,2]
[324811509,1714339953612,-1600.82729298,0.0001781,2]
[324811510,1714339953623,-1600.82729298,0.0001781,2]
[324811511,1714339953632,-1600.82729298,0.0001781,2]
[324811512,1714339953642,-1601.32,0.0001781,2]
[324811513,1714339953653,-769.88171803,0.0001781,2]
[324811514,1714339953663,-769.88171803,0.0001781,2]
[324811515,1714339953674,-769.88171803,0.0001781,2]
[324811516,1714339953684,-769.88171803,0.0001781,2]
[324811517,1714339953694,-769.88171803,0.0001781,2]
[324811518,1714339953704,-769.88171803,0.0001781,2]
[324811519,1714339953714,-769.88171803,0.0001781,2]
[324811520,1714339953724,-769.88171803,0.0001781,2]
[324811521,1714339953736,-769.88171803,0.0001781,2]
[324811522,1714339953745,-769.88171803,0.0001781,2]
[324811523,1714339953755,-769.88171803,0.0001781,2]
[324811524,1714339953764,-769.88171803,0.0001781,2]
[324811525,1714339953773,-769.88171803,0.0001781,2]
[324811526,1714339953782,-769.88171803,0.0001781,2]
[324811527,1714339953796,-769.88171803,0.0001781,2]
[324811528,1714339953807,-769.88171803,0.0001781,2]
[324811529,1714339953817,-769.88171803,0.0001781,2]
[324811530,1714339953826,-769.88171803,0.0001781,2]
[324811531,1714339953838,-769.88171803,0.0001781,2]
[324811532,1714339953847,-770.38,0.0001781,2]
[324811533,1714339953857,-251.042906,0.00017848,4]
[324811534,1714339953866,-251.042906,0.00017848,2]
[324811535,1714339953876,-150.0,0.0001786,2]
[324811536,1714339953886,-1000.0,0.000179,2]
[324811537,1714339953895,-251.042906,0.00017948,4]
[324811538,1714339953904,-251.042906,0.00017948,2]
[324811539,1714339953913,-150.0,0.00017949,2]
[324811540,1714339953922,-251.042906,0.00017998,2]
[324811541,1714339953931,-251.042906,0.00017998,4]
[324811542,1714339953940,-155.33423124,0.00018043,2]
[324811543,1714339953949,-251.042906,0.00018048,2]
[324811544,1714339953958,-251.042906,0.00018048,4]
[324811545,1714339953968,-254.35491349,0.00018075,2]
[324811546,1714339953978,-150.0,0.00018088,2]
[324811547,1714339953987,-251.042906,0.00018098,4]
[324811548,1714339953996,-251.042906,0.00018098,2]
[324811549,1714339954005,-251.042906,0.00018148,4]
[324811550,1714339954015,-152.53756933,0.00018154,2]
[324811551,1714339954025,-8068.06636859,0.00018162,2]
[324811552,1714339954034,-241.042905,0.00018198,4]
[324811553,1714339954044,-251.042906,0.00018198,2]
[324811554,1714339954055,-150.0,0.00018225,2]
[324811555,1714339954065,-150.0,0.00018227,2]
[324811556,1714339954075,-251.042906,0.00018248,4]
[324811557,1714339954084,-155.73337614,0.00018277,2]
[324811558,1714339954094,-156.96982212,0.00018287,2]
[324811559,1714339954103,-251.042906,0.00018298,4]
[324811560,1714339954113,-251.042906,0.00018298,2]
[324811561,1714339954122,-155.33423124,0.00018321,2]
[324811562,1714339954131,-251.042906,0.00018348,4]
[324811563,1714339954141,-150.0,0.00018351,2]
[324811564,1714339954150,-12307.56140714,0.00018367,2]
[324811565,1714339954159,-3148.23,0.00018376,2]
[324811566,1714339954168,-150.0,0.0001839,2]
[324811567,1714339954177,-251.042906,0.00018398,2]
[324811568,1714339954187,-251.042906,0.00018398,4]
[324811569,1714339954196,-156.96982212,0.00018435,2]
[324811570,1714339954206,-150.0,0.00018443,2]
[324811571,1714339954215,-251.042906,0.00018448,4]
[324811572,1714339954225,-241.042905,0.00018498,4]
[324811573,1714339954234,-241.042905,0.00018498,2]
[324811574,1714339954244,-150.0,0.00018525,2]
[324811575,1714339954253,-162.35724666,0.00018543,2]
[324811576,1714339954263,-241.042905,0.00018548,4]
[324811577,1714339954272,-241.042905,0.00018598,4]
[324811578,1714339954281,-155.33423124,0.00018598,2]
[324811579,1714339954290,-153.71017335,0.0001861,2]
[324811580,1714339954299,-150.0,0.00018642,2]
[324811581,1714339954309,-241.042905,0.00018648,4]
[324811582,1714339954319,-3059.79,0.0001866,2]
[324811583,1714339954328,-8282.13,0.00018683,2]
[324811584,1714339954337,-241.042905,0.00018698,2]
[324811585,1714339954346,-241.042905,0.00018698,4]
[324811586,1714339954356,-150.0,0.00018724,2]
[324811587,1714339954365,-150.0,0.00018728,2]
[324811588,1714339954374,-150.0,0.0001874,2]
[324811589,1714339954384,-1812.74,0.00018741,2]
[324811590,1714339954393,-154.13959312,0.00018741,2]
[324811591,1714339954403,-155.73337614,0.00018755,2]
[324811592,1714339954413,-254.35491349,0.00018755,2]
[324811593,1714339954424,-2422.3,0.00018776,2]
[324811594,1714339954435,-150.0,0.00018783,2]
[324811595,1714339954444,-241.042905,0.00018798,4]
[324811596,1714339954454,-241.042905,0.00018798,2]
[324811597,1714339954463,-2608.27,0.00018813,2]
[324811598,1714339954472,-155.33423124,0.00018816,2]
[324811599,1714339954482,-150.0,0.00018841,2]
[324811600,1714339954492,-254.35491349,0.0001886,2]
[324811601,1714339954501,-1588.12,0.00018884,2]
[324811602,1714339954510,-156.96982212,0.00018892,2]
[324811603,1714339954520,-864.156,0.00018895,2]
[324811604,1714339954529,-241.042905,0.00018898,2]
[324811605,1714339954538,-241.042905,0.00018898,4]
[324811606,1714339954548,-156.96982212,0.00018916,2]
[324811607,1714339954557,-150.0,0.0001893,2]
[324811608,1714339954566,-899.99999,0.0001894,14]
[324811609,1714339954576,-241.042905,0.00018998,4]
[324811610,1714339954585,-241.042905,0.00018998,2]
[324811611,1714339954597,-290.86049612,0.00018998,2]
[324811612,1714339954608,-366.15323607,0.00019,2]
[324811613,1714339954620,-12411.73403906,0.00019,2]
[324811614,1714339954630,-1250.0,0.00019,7]
[324811615,1714339954641,-254.35491349,0.00019005,2]
[324811616,1714339954651,-152.0,0.00019035,3]
[324811617,1714339954662,-241.042905,0.00019098,4]
[324811618,1714339954671,-158.37439134,0.00019133,2]
[324811619,1714339954680,-162.35724666,0.00019144,2]
[324811620,1714339954690,-150.0,0.0001916,2]
[324811621,1714339954699,-150.0,0.00019163,2]
[324811622,1714339954709,-152.53756933,0.00019166,2]
[324811623,1714339954717,-55000.0,0.00019178,2]
[324811624,1714339954727,-241.042905,0.00019198,4]
[324811625,1714339954736,-150.0,0.00019222,2]
[324811626,1714339954745,-150.0,0.00019244,2]
[324811627,1714339954755,-153.18091199,0.00019267,2]
[324811628,1714339954764,-150.0,0.0001927,2]
[324811629,1714339954773,-254.35491349,0.00019272,2]
[324811630,1714339954782,-231.7013673,0.00019276,2]
[324811631,1714339954792,-342364.22279574,0.00019289,5]
[324811632,1714339954805,-241.042905,0.00019298,4]
[324811633,1714339954814,-389.17,0.00019299,2]
[324811634,1714339954823,-150.0,0.00019338,2]
[324811635,1714339954832,-407771.64,0.00019344,6]
[324811636,1714339954841,-154.31732651,0.00019381,2]
[324811637,1714339954851,-241.042905,0.00019398,4]
[324811638,1714339954860,-254.35491349,0.0001941,2]
[324811639,1714339954869,-241.042905,0.00019448,2]
[324811640,1714339954882,-254.35491349,0.00019449,2]
[324811641,1714339954891,-155.33423124,0.00019454,2]
[324811642,1714339954900,-162.35724666,0.00019454,2]
[324811643,1714339954909,-150.0,0.00019466,2]
[324811644,1714339954919,-1500.0,0.00019482,2]
[324811645,1714339954928,-241.042905,0.00019498,4]
[324811646,1714339954938,-150.0,0.0001951,2]
[324811647,1714339954947,-150.0,0.00019519,2]
[324811648,1714339954956,-150.0,0.00019525,2]
[324811649,1714339954966,-241.042905,0.00019548,2]
[324811650,1714339954976,-192.0,0.0001956,15]
[324811651,1714339954985,-150.0,0.00019567,2]
[324811652,1714339954994,-256.93,0.0001957,15]
[324811653,1714339955003,-192.0,0.0001957,15]
[324811654,1714339955013,-156.96982212,0.00019576,2]
[324811655,1714339955023,-150.5,0.0001958,15]
[324811656,1714339955032,-192.0,0.0001958,15]
[324811657,1714339955042,-155.33423124,0.0001958,2]
[324811658,1714339955051,-241.042905,0.00019598,4]
[324811659,1714339955061,-152.0,0.00019644,4]
[324811660,1714339955070,-150.0,0.00019647,2]
[324811661,1714339955080,-241.042905,0.00019648,2]
[324811662,1714339955090,-156.96982212,0.0001968,2]
[324811663,1714339955099,-241.042905,0.00019698,4]
[324811664,1714339955109,-241.042905,0.00019748,2]
[324811665,1714339955119,-150.0,0.00019755,2]
[324811666,1714339955129,-177.63320564,0.00019774,2]
[324811667,1714339955139,-241.042905,0.00019798,4]
[324811668,1714339955148,-12383.14617738,0.00019825,2]
[324811669,1714339955158,-500.0,0.00019838,2]
[324811670,1714339955167,-192.0,0.0001984,15]
[324811671,1714339955176,-500.0,0.00019847,2]
[324811672,1714339955187,-241.042905,0.00019848,2]
[324811673,1714339955196,-5800.0,0.00019849,2]
[324811674,1714339955205,-192.0,0.0001985,15]
[324811675,1714339955215,-500.0,0.00019856,2]
[324811676,1714339955225,-5800.0,0.00019858,2]
[324811677,1714339955235,-192.0,0.0001986,15]
[324811678,1714339955245,-150.0,0.00019863,2]
[324811679,1714339955254,-500.0,0.00019865,2]
[324811680,1714339955264,-500.0,0.00019865,2]
[324811681,1714339955273,-5800.0,0.00019866,2]
[324811682,1714339955283,-192.0,0.0001987,15]
[324811683,1714339955293,-500.0,0.00019874,2]
[324811684,1714339955302,-500.0,0.00019874,2]
[324811685,1714339955311,-1000.0,0.00019874,3]
[324811686,1714339955320,-5800.0,0.00019875,2]
[324811687,1714339955329,-192.0,0.0001988,15]
[324811688,1714339955339,-500.0,0.00019882,2]
[324811689,1714339955348,-500.0,0.00019882,2]
[324811690,1714339955357,-5800.0,0.00019883,2]
[324811691,1714339955367,-500.0,0.00019891,2]
[324811692,1714339955378,-500.0,0.00019891,2]
[324811693,1714339955388,-5800.0,0.00019892,2]
[324811694,1714339955398,-241.042905,0.00019898,4]
[324811695,1714339955408,-500.0,0.000199,2]
[324811696,1714339955418,-500.0,0.000199,2]
[324811697,1714339955427,-5800.0,0.000199,2]
[324811698,1714339955445,-153.65725863,0.000199,2]
[324811699,1714339955454,-152.53756933,0.00019904,2]
[324811700,1714339955464,-150.0,0.00019916,2]
[324811701,1714339955474,-3428.28848826,0.00019939,2]
[324811702,1714339955483,-254.35491349,0.00019946,2]
[324811703,1714339955493,-241.042905,0.00019948,2]
[324811704,1714339955502,-602.17329847,0.0001997,2]
[324811705,1714339955511,-400.0,0.0001997,2]
[324811706,1714339955521,-201.0,0.0001997,15]
[324811707,1714339955531,-192.0,0.0001998,15]
[324811708,1714339955541,-3325.4332005,0.00019986,2]
[324811709,1714339955551,-2666.9482415,0.00019986,2]
[324811710,1714339955561,-2008.4632824,0.00019986,2]
[324811711,1714339955570,-1349.9783234,0.00019986,2]
[324811712,1714339955580,-691.4933644,0.00019986,2]
[324811713,1714339955590,-150.0,0.00019993,2]
[324811714,1714339955599,-241.042905,0.00019998,4]
[324811715,1714339955609,-1111572.10347027,0.0002,5]
[324811716,1714339956629,-720.134902,0.000109,2]
[324811746,1714341033053,-3210.7,7.308e-05,2]
[324811747,1714341033064,-2338.36130183,7.308e-05,2]
[324811749,1714341033073,-4334.43251599,7.308e-05,2]
[324811751,1714341033083,-2322.88499883,7.309e-05,2]
[324811752,1714341033096,-155.0,7.31e-05,2]
[324811754,1714341033105,-8373.82356533,7.31e-05,2]
[324811755,1714341033120,-2360.81716372,7.31e-05,2]
[324811756,1714341033132,-12043.76939885,7.31e-05,2]
[324811757,1714341033141,-155.0,7.311e-05,2]
[324811758,1714341033150,-150.0,7.316e-05,2]
[324811759,1714341033161,-467.37038368,7.367e-05,2]
[324811760,1714341033170,-284.53308869,8e-05,2]
[324811761,1714341033179,-150.0,8.192e-05,2]
[324811762,1714341033189,-303.57,8.219e-05,2]
[324811763,1714341033198,-12583.3900082,9.764e-05,2]
[324811764,1714341033209,-6782.78462326,9.764e-05,2]
[324811765,1714341033229,-3230.63302066,9.764e-05,2]
[324811766,1714341033241,-588.71486484,9.764e-05,2]
[324811797,1714341038304,-1609.24573252,7.307e-05,2]
[324811799,1714341038314,-714.47748304,9.764e-05,2]
[324811801,1714341038323,-314.44,9.933e-05,2]
[324811803,1714341038333,-250.0,9.97e-05,2]
[324811805,1714341038342,-500.0,9.997e-05,2]
[324811807,1714341038351,-499.99,0.0001,2]
[324811809,1714341038360,-150.99,0.0001,2]
[324811811,1714341038370,-710.59605264,0.0001,2]
[324811813,1714341038379,-150.0,0.00010033,2]
[324811814,1714341038388,-200.0,0.00010056,2]
[324811816,1714341038397,-400.0,0.00010223,2]
[324811818,1714341038407,-303.57,0.00010478,2]
[324811820,1714341038416,-1000.0,0.00010662,2]
[324811822,1714341038425,-10000.0,0.00010858,2]
[324811825,1714341038435,-2500.0,0.00010858,2]
[324811826,1714341038445,-643.28876889,0.000109,4]
[324811828,1714341038455,-643.28876889,0.000109,4]
[324811830,1714341038466,-643.28876889,0.000109,4]
[324811832,1714341038475,-1809.29,0.000109,2]
[324811835,1714341038485,-207.89531901,0.00010956,2]
[324811837,1714341038494,-156.64002537,0.00010956,2]
[324811839,1714341038503,-261.98635353,0.00010956,2]
[324811841,1714341038513,-241.24764842,0.00010957,2]
[324811843,1714341038522,-500.0,0.00010958,2]
[324811845,1714341038531,-253.98374418,0.00010958,2]
[324811847,1714341038540,-500.0,0.00010958,2]
[324811849,1714341038549,-500.47,0.00010958,2]
[324811850,1714341038559,-500.0,0.00010958,2]
[324811852,1714341038568,-500.0,0.00010958,2]
[324811854,1714341038577,-500.0,0.00010958,2]
[324811856,1714341038586,-500.0,0.00010958,2]
[324811858,1714341038595,-500.0,0.00010958,2]
[324811860,1714341038604,-500.0,0.00010958,2]
[324811862,1714341038613,-500.0,0.00010958,2]
[324811863,1714341038622,-500.0,0.00010958,2]
[324811865,1714341038631,-500.0,0.00010958,2]
[324811867,1714341038641,-500.0,0.00010958,2]
[324811870,1714341038650,-500.0,0.00010958,2]
[324811872,1714341038659,-500.0,0.00010958,2]
[324811874,1714341038669,-500.0,0.00010958,2]
[324811876,1714341038678,-511.57148767,0.00010958,2]
[324811878,1714341038687,-500.0,0.00010958,2]
[324811881,1714341038706,-500.0,0.00010958,2]
[324811883,1714341038718,-500.0,0.00010958,2]
[324811886,1714341038727,-500.0,0.00010958,2]
[324811888,1714341038737,-500.0,0.00010958,2]
[324811890,1714341038747,-500.0,0.00010958,2]
[324811891,1714341038756,-500.0,0.00010958,2]
[324811892,1714341038766,-500.0,0.00010958,2]
[324811893,1714341038775,-504.68023967,0.00010958,2]
[324811895,1714341038785,-500.0,0.00010958,2]
[324811896,1714341038795,-500.0,0.00010958,2]
[324811897,1714341038804,-500.0,0.00010958,2]
[324811899,1714341038814,-500.0,0.00010958,2]
[324811901,1714341038829,-500.0,0.00010958,2]
[324811903,1714341038839,-501.49145758,0.00010958,2]
[324811905,1714341038848,-500.0,0.00010958,2]
[324811907,1714341038857,-500.0,0.00010958,2]
[324811909,1714341038867,-500.0,0.00010958,2]
[324811910,1714341038876,-500.0,0.00010958,2]
[324811911,1714341038886,-500.0,0.00010958,2]
[324811912,1714341038896,-500.0,0.00010958,2]
[324811913,1714341038905,-500.0,0.00010958,2]
[324811914,1714341038915,-500.0,0.00010958,2]
[324811915,1714341038924,-500.0,0.00010958,2]
[324811916,1714341038934,-500.0,0.00010958,2]